Cogmind - Beta 14 @@@ ROGUE MODE // 2024.10.04 @ 19:29:05 Player: Nalzok Result: Destroyed by BO-DQ5(R) with Subdweller Machine Gun Performance ------------- Evolutions (0) 0 Regions Visited (3) 600 Robots Destroyed (41) 205 Value Destroyed (1256) 1256 Prototype IDs (1) 20 Alien Tech Used (0) 0 Bonus (30) 30 TOTAL SCORE: 2111 Bonus ------- Follower Combat Kills 30 Cogmind --------- Core Integrity 0/250 Matter 270/300 Energy 177/180 System Corruption 0% Temperature Cool (0) Movement Core (450) Ox8 Location -10/Subcaves Parts ------- > --- POWER (1) -------- Meta Core > --- PROPULSION (2) --- (None) > --- UTILITY (2) ------ Medium Storage Unit Structural Scanner > --- WEAPON (2) ------- Subdweller Laser Subdweller Machine Gun > --- INVENTORY (10) --- Light Angular Momentum Engine Large Storage Unit Experimental Sensor Array Makeshift Light Armor Plating Medium Laser Subdweller Machine Gun Battle Cannon Rocket Launcher Plasma Cutter Flail Peak State ------------ > --- POWER ------------ Meta Core > --- PROPULSION ------- Improved Aluminum Leg Makeshift Leg Makeshift Leg > --- UTILITY ---------- Medium Storage Unit Structural Scanner Subdweller Optics > --- WEAPON ----------- Subdweller Machine Gun Improved Light Cannon > --- INVENTORY -------- Ion Engine Light Angular Momentum Engine Heat Sink Large Storage Unit Experimental Sensor Array Rocket Launcher Plasma Cutter Flail [Rating: 33] Favorites ----------- Power Ion Engine Engine Ion Engine Power Core Meta Core Propulsion Improved Aluminum Leg Leg Improved Aluminum Leg Utility Structural Scanner Device Structural Scanner Storage Medium Storage Unit Protection Light Armor Plating Weapon Improved Light Cannon Energy Gun Subdweller Laser Energy Cannon Subdweller Beam Cannon Ballistic Gun Subdweller Machine Gun Ballistic Cannon Improved Light Cannon Launcher Rocket Launcher Special Weapon Plasma Cutter Impact Weapon Flail Build | -11 -10 -10 -10 ------- Run | Yrd Mat Min Sub Slots Evolved . | . . . . Power . | . . . . Propulsion . | . . . . Utility . | . . . . Weapon . | . . . . Parts Attached 44 | . 20 4 20 Power 7 | . 3 1 3 Engine 6 | . 3 1 2 Core 1 | . . . 1 Reactor . | . . . . Propulsion 16 | . 9 2 5 Treads . | . . . . Leg 16 | . 9 2 5 Wheel . | . . . . Hover . | . . . . Flight . | . . . . Utility 4 | . 3 . 1 Device 2 | . 1 . 1 Storage 1 | . 1 . . Processor . | . . . . Hackware . | . . . . Protection 1 | . 1 . . Artifact . | . . . . Weapon 17 | . 5 1 11 Energy Gun 1 | . . . 1 Energy Cannon 1 | . . . 1 Ballistic Gun 4 | . . . 4 Ballistic Cannon 7 | . 5 1 1 Launcher 2 | . . . 2 Special Weapon 1 | . . . 1 Impact Weapon 1 | . . . 1 Slashing Weapon . | . . . . Piercing Weapon . | . . . . Special Melee Weapon . | . . . . Unidentified Prototypes 1 | . . . 1 Parts Lost 10 | . 2 1 7 Power . | . . . . Propulsion 4 | . 1 . 3 Utility . | . . . . Weapon 6 | . 1 1 4 Highest Loss Streak 2 | . 1 1 2 To Critical Strikes . | . . . . Average Slot Usage (%) 97 | . 98 99 94 Engine 10 | . 14 14 5 Core 2 | . . . 7 Leg 28 | . 27 28 30 Device 13 | . 12 14 13 Storage 13 | . 14 14 12 Ballistic Gun 3 | . . . 9 Ballistic Cannon 20 | . 27 27 10 Launcher 1 | . . . 2 Peak Build Rating 33 | 6 12 11 33 Average Rating 16 | 6 11 10 24 On Entrance 8 | 6 6 11 11 Naked Turns . | . . . . Heaviest Build 29 | 11 24 24 29 Greatest Support 53 | 20 26 23 53 Greatest Overweight (x) 2 | . 2 1 1 Average Overweight (x) . | . . . . Largest Inventory Capacity 10 | 8 10 10 10 Average Capacity 9 | 8 8 10 10 Most Carried 10 | 5 10 10 10 Average Carried 9 | 4 8 9 9 Final Capacity 10 | 8 10 10 10 Final Carried 10 | 4 10 10 10 Class Distribution -------------------- 64% | Mutant 32% | Scavenger-Mutant 3% | Scavenger-Skirmisher Dominant Class ---------------- Mutant | -10/Materials Scavenger-Mutant | -10/Mines Mutant | -10/Subcaves Resources | -11 -10 -10 -10 ----------- Run | Yrd Mat Min Sub Matter Collected 1433 | 200 623 136 474 Remotely . | . . . . Salvage Created 1112 | . 687 57 368 Parts 71 | . 45 8 18 Haulers Intercepted 1 | . 1 . . Recyclers Shooed . | . . . . Parts Field Recycled . | . . . . Retrieved Matter . | . . . . Parts Self-Destructed 1 | . . . 1 Prevented . | . . . . Kills | -11 -10 -10 -10 ------- Run | Yrd Mat Min Sub Combat Hostiles Destroyed 37 | . 21 5 11 Guns 7 | . . . 7 Cannons 29 | . 21 5 3 AOE 1 | . . . 1 Classes Destroyed 8 | . 6 . 2 Builder 1 | . 1 . . Hauler 1 | . 1 . . Recycler 1 | . 1 . . Operator 1 | . 1 . . Swarmer 7 | . 3 3 1 Grunt 20 | . 18 2 . Sentry 1 | . . . 1 Subdweller 9 | . . . 9 Best Kill Streak 3 | . 3 2 3 Combat Bots Only 3 | . 3 2 3 Max Kills in Single Turn 2 | . 2 1 1 Gunslinging . | . . . . Exploded 1 | . . . 1 Melee . | . . . . Uniques/NPCs Destroyed . | . . . . Combat | -11 -10 -10 -10 -------- Run | Yrd Mat Min Sub Hostile Shots Fired 153 | . 72 20 61 Missed 41 | . 25 5 11 Damage Taken 1790 | . 543 174 1073 Core 255 | . 57 44 154 Absorbed by Shields . | . . . . Core Remaining (%) 100 | 100 . . . Volleys Fired 149 | . 57 15 77 Largest 2 | . 2 2 2 Hottest 90 | . 78 78 90 Shots Fired 240 | . 114 28 98 Gun 53 | . . . 53 Cannon 172 | . 114 28 30 Launcher 12 | . . . 12 Special 3 | . . . 3 Kinetic 209 | . 114 28 67 Thermal 19 | . . . 19 Explosive 12 | . . . 12 Electromagnetic . | . . . . Robot Hit Streak 14 | . 8 5 14 Robot Miss Streak 6 | . 6 5 1 Penetration Max . | . . . . Secondary Targets . | . . . . Shots Hit Robots 127 | . 56 14 57 Core Hits 55 | . 26 6 23 Critical Kills . | . . . . Critical Parts Destroyed . | . . . . Critical Strikes 4 | . 2 1 1 Destroy 1 | . . . 1 Blast 3 | . 2 1 . Melee Attacks 4 | . . . 4 Impact 4 | . . . 4 Slashing . | . . . . Piercing . | . . . . Sneak Attacks . | . . . . Combat Hostiles . | . . . . Follow-up Attacks . | . . . . Damage Inflicted 2929 | . 1272 299 1358 Guns 762 | . . . 762 Cannons 1806 | . 1272 299 235 Explosions 333 | . . . 333 Melee 28 | . . . 28 Ramming . | . . . . Kinetic 2398 | . 1272 299 827 Thermal 170 | . . . 170 Explosive 333 | . . . 333 Electromagnetic . | . . . . Impact 28 | . . . 28 Slashing . | . . . . Piercing . | . . . . Highest Corruption . | . . . . Average Corruption . | . . . . Corruption Purged . | . . . . Corruption Blocked . | . . . . Overload Shots . | . . . . Overflow Damage 30 | . 30 . . Projectiles 30 | . 30 . . Explosions . | . . . . Melee . | . . . . Knockbacks 23 | . 18 4 1 Impact 1 | . . . 1 Kinetic 20 | . 16 4 . Secondary 2 | . 2 . . Self-Inflicted Damage 89 | . . . 89 Shots 3 | . . . 3 Rammed . | . . . . Targets Rammed . | . . . . Kicked . | . . . . Crushed . | . . . . Highest Temperature 232 | . 168 232 . Average Temperature 54 | . 44 94 . Received Heat Transfer 588 | . 291 108 189 Effects 1 | . . 1 . Energy Bleed 1 | . . 1 . Siege Activations . | . . . . Robots Corrupted . | . . . . Combat Hostiles . | . . . . Parts Fried . | . . . . Impact Corruptions . | . . . . Robots Melted . | . . . . Combat Hostiles . | . . . . Parts Melted 1 | . . . 1 Heat Transferred 200 | . . . 200 Parts Sabotaged . | . . . . Parts Stolen . | . . . . Parts Stripped . | . . . . Power Chain Reactions . | . . . . Alert | -11 -10 -10 -10 ------- Run | Yrd Mat Min Sub Peak Influence 238 | . 238 126 . Initial 19 | . . 19 . Average 57 | . 80 29 . Maximum Alert Level 1 | . 1 . . Low Security (%) 97 | 100 95 100 . Level 1 2 | . 4 . . Level 2 . | . . . . Level 3 . | . . . . Level 4 . | . . . . Level 5 . | . . . . High Security . | . . . . Max Security . | . . . . Squads Dispatched 7 | . 7 . . Investigation 4 | . 4 . . Extermination . | . . . . Reinforcement 3 | . 3 . . Assault . | . . . . Garrison . | . . . . Intercept . | . . . . Searches Triggered . | . . . . Construction Impeded . | . . . . Haulers Reinforced . | . . . . Active Scanning Responses . | . . . . Cargo Convoy Interrupts . | . . . . Stealth | -11 -10 -10 -10 --------- Run | Yrd Mat Min Sub Distress Signals 2 | . 2 . . Communications Jammed . | . . . . Distress Signals . | . . . . Times Spotted 57 | . 36 4 17 Peak Tracking Total 6 | . 6 2 4 Tactical Retreats 8 | . 5 1 2 Traps | -11 -10 -10 -10 ------- Run | Yrd Mat Min Sub Traps Triggered 5 | . 5 . . Indirectly . | . . . . Trap Hack Attempts . | . . . . Triggered . | . . . . Disarmed . | . . . . Reprogrammed . | . . . . Reused . | . . . . Traps Extracted . | . . . . Installed . | . . . . Triggered . | . . . . Machines | -11 -10 -10 -10 ---------- Run | Yrd Mat Min Sub Machines Disabled 2 | . 2 . . Max in Single Turn 1 | . 1 . . Machines Repaired . | . . . . Machines Dismantled . | . . . . Machines Sabotaged . | . . . . Overloaded Fab Kills . | . . . . Hacking | -11 -10 -10 -10 --------- Run | Yrd Mat Min Sub Machines Accessed 10 | . 7 1 2 Terminals 8 | . 7 1 . Fabricators . | . . . . Repair Stations . | . . . . Recycling Units . | . . . . Scanalyzers . | . . . . Garrison Access . | . . . . Total Hacks 40 | . 35 2 3 Successful 19 | . 16 . 3 Failed 21 | . 19 2 . Catastrophic 5 | . 4 1 . Database Lockouts . | . . . . Manual 34 | . 32 2 . Terminals 37 | . 35 2 . Fabricators . | . . . . Repair Stations . | . . . . Recycling Units . | . . . . Scanalyzers . | . . . . Garrison Access . | . . . . Terminal Hacks 8 | . 5 . 3 Record 1 | . . . 1 Open Door 1 | . . . 1 Terminal Index 1 | . 1 . . Unreport Threat 3 | . 3 . . Zone Layout 1 | . 1 . . Release Object 1 | . . . 1 Fabricator Hacks . | . . . . Repair Station Hacks . | . . . . Recycling Unit Hacks . | . . . . Scanalyzer . | . . . . Garrison Access Hacks . | . . . . Unauthorized Hacks 11 | . 11 . . Terminals 11 | . 11 . . Botnet 5 | . 5 . . Operators 1 | . 1 . . Skim 5 | . 5 . . Fabricators . | . . . . Repair Stations . | . . . . Recycling Units . | . . . . Scanalyzers . | . . . . Garrison Access . | . . . . Data Cores Recovered . | . . . . Used . | . . . . Hacking Detections 8 | . 7 1 . Full Trace Events 2 | . 1 1 . Feedback Events . | . . . . Feedback Blocked . | . . . . Robot Schematics Acquired . | . . . . Robots Built . | . . . . Authchips . | . . . . Time . | . . . . Total Robot Build Rating . | . . . . Part Schematics Acquired . | . . . . Parts Built . | . . . . Authchips . | . . . . Time . | . . . . Total Part Build Rating . | . . . . Parts Repaired . | . . . . Time . | . . . . Parts Recycled . | . . . . Recycled Matter . | . . . . Retrieved Matter . | . . . . Retrieved Components . | . . . . Parts Scanalyzed . | . . . . Part Schematics Acquired . | . . . . Parts Damaged . | . . . . Bothacking | -11 -10 -10 -10 ------------ Run | Yrd Mat Min Sub Used RIF Installer . | . . . . Robots Hacked . | . . . . Non-combat . | . . . . Combat . | . . . . Robot Hacks Applied . | . . . . Relay Couplers Released . | . . . . Fabnet Peak Effective % . | . . . . Robots Rewired . | . . . . Allies Hacked . | . . . . Hacks Repelled . | . . . . Allies | -11 -10 -10 -10 -------- Run | Yrd Mat Min Sub Total Allies 2 | . . 2 . Largest Group 2 | . . 2 2 Highest-Rated Group 46 | . . 46 46 Highest-Rated Ally 31 | . . 31 31 Total Orders . | . . . . Ally Attacks 8 | . . 2 6 Total Damage 119 | . . 17 102 Kills 1 | . . . 1 Allies Corrupted . | . . . . Allies Melted . | . . . . Intel | -11 -10 -10 -10 ------- Run | Yrd Mat Min Sub Robot Analysis Total . | . . . . Derelict Logs Recovered 3 | . . 2 1 Drone Launches . | . . . . Drone Recoveries . | . . . . Exploration | -11 -10 -10 -10 ------------- Run | Yrd Mat Min Sub Turns Passed 4082 | 4 1373 1073 1632 Spaces Moved 2324 | 3 810 555 956 Core . | . . . . Treads . | . . . . Legs 2324 | 3 810 555 956 Wheels . | . . . . Hover . | . . . . Flight . | . . . . Fastest Speed 120 | 120 120 120 120 Average Speed 149 | 120 131 181 145 Slowest Speed 260 | 120 260 190 190 Overloaded Moves . | . . . . Propulsion Burnouts . | . . . . Robots Hopped . | . . . . Cave-ins Triggered . | . . . . Exploration Rate (%) 60 | 2 91 100 48 Regions Visited 3 Branch Regions 2 Pre-discovered Areas 2 | . . 1 1 Known Exits Taken . | . . . . Unknown Exits Taken 3 | 1 1 1 . Scrap Searched 2 | . . 1 1 Spaces Dug 34 | . 1 . 33 Terrain Destroyed 121 | . 4 3 114 Melee 1 | . . . 1 Projectile 13 | . 4 3 6 AOE 107 | . . . 107 Terrain Rammed . | . . . . Walls Destroyed . | . . . . Machines Disabled . | . . . . Actions | -11 -10 -10 -10 --------- Run | Yrd Mat Min Sub Total 2694 | 4 1004 598 1088 Wait 121 | . 94 16 11 Move 2321 | 2 809 554 956 Hop . | . . . . Pick Up 22 | . 11 4 7 Fast Attach 14 | . 9 . 5 Attach 8 | . 1 2 5 Detach 2 | . . . 2 Swap 22 | . 10 2 10 Drop 30 | 2 13 5 10 Fire 149 | . 57 15 77 Melee 4 | . . . 4 Ram . | . . . . Kick . | . . . . Crush . | . . . . Escape Stasis . | . . . . Rewire . | . . . . Trap . | . . . . Miscellaneous 1 | . . . 1 Route ------- -11/Scrapyard -10/Materials (discovered 5 exits: [*Mat x3] / *Min x2) -10/Mines (discovered 3 exits: [*Mat x2] / *Sub) -10/Subcaves (discovered 1 exit: [*Mat]) History --------- Turn | Location | Event 2 | -11/Scrapyard | Discovered new exit (range 1) 5 | -11/Scrapyard | Entered Materials 184 | -10/Materials | Discovered new exit (range 16) 308 | -10/Materials | Build established: Mutant 329 | -10/Materials | Discovered new exit (range 16) 617 | -10/Materials | Discovered new exit (range 15) 989 | -10/Materials | Discovered new exit (range 13) 1062 | -10/Materials | Discovered new exit (range 15) 1378 | -10/Materials | Entered Mines 1614 | -10/Mines | Learned location of Zion (-7) 1638 | -10/Mines | Received a Rocket Launcher from a helpful Derelict 1769 | -10/Mines | Found a hidden stash of uninstalled traps 1817 | -10/Mines | Found a damaged Exp. Sensor Array with a note attached 1823 | -10/Mines | Found Prototype Device 1915 | -10/Mines | Learned Materials garrison access intel 1917 | -10/Mines | Discovered new exit (range 14) 2095 | -10/Mines | Discovered new exit (range 9) 2127 | -10/Mines | Build established: Scavenger-Mutant 2424 | -10/Mines | Discovered new exit (range 13) 2451 | -10/Mines | Entered Subcaves 2451 | -10/Subcaves | Accompanied by 2 allies 2456 | -10/Subcaves | Led the pair of lost Derelicts to an unsafe place 3001 | -10/Subcaves | A Subdweller sparked back to life 3001 | -10/Subcaves | A Subdweller sparked back to life 3001 | -10/Subcaves | A Subdweller sparked back to life 3005 | -10/Subcaves | Core integrity fell below 50% 3052 | -10/Subcaves | Found Prototype Power Core 3053 | -10/Subcaves | Identified Meta Core 3055 | -10/Subcaves | Attached Meta Core, gained temporary slots: Propulsion, Utility, Weapon 3118 | -10/Subcaves | Shifting Twisted Machinery released Sub. Machine Gun 3118 | -10/Subcaves | Shifting Twisted Machinery released Sub. Beam Cannon 3250 | -10/Subcaves | Released subatomizers from SUBCON Basin 3355 | -10/Subcaves | Discovered new exit (range 12) 3425 | -10/Subcaves | A swath of the cavern ceiling suddenly collapsed 3618 | -10/Subcaves | Ambushed by Subdweller buried in earth 3620 | -10/Subcaves | Ambushed by Subdweller buried in earth 3620 | -10/Subcaves | Ambushed by Subdweller buried in earth 3767 | -10/Subcaves | Build established: Mutant 4060 | -10/Subcaves | Disturbed a concealed Subdweller 4067 | -10/Subcaves | Core integrity fell below 20% 4083 | -10/Subcaves | Destroyed by BO-DQ5(R) with Subdweller Machine Gun Last Messages --------------- 03792_ Acquired 51 matter. 03795_ Acquired 8 matter. 03906_ HD-M1X(R): "SLEEPOVER!" 03912_ The unstable cave ceiling collapses. 03916_ Imp. Aluminum Leg destroyed. 03917_ The unstable cave ceiling collapses. 03917_ HD-M1X(R) destroyed. 03922_ Acquired 35 matter. 03928_ The unstable cave ceiling collapses. 03930_ Searching scrap... 03930_ Found Sub. Laser. 03930_ Found Sub. Monowheel. 03930_ Found 45 Matter. 03931_ Acquired 45 matter. 03933_ Dropped Heat Sink. 03934_ Acquired Sub. Laser. 03955_ The unstable cave ceiling collapses. 04061_ Mak. Leg destroyed. 04061_ Temporary Propulsion slot lost. 04064_ Mak. Leg destroyed. Map ----- +----------------------------------------------------+ | ??????????????????????????????????????? | | ??????????????????????????????????????? | | ??????????????????????????????????????? | | ??????????????????????????????????????? | | ??????????????????????????????????????? | | ??????????????????????????????????????? | | ??????????????????????????????????????? | | ?????????????????????????????????????? | | ????????????????????????????????????### | | ???????????????????????????????????? ## | | ?????????????????????????????????? | | ????????????????????????????????? | | ???????????????????????????? ??? | | ??????????????????????????? ??? | | ?????????????????????????? ????## | | ?????????????????????????? #????## | | ??????????????????####### ##??????# | | ??????????????????####### ###?????## | | ??????????????????# ### ####????## ? | | ???????????????#### ######### | | ???????????????##### ### ### | | ???????????##" ## ### | | ???????????## ### #### | | ???????????## ##<#< ###### | | ???????????##R# ####?### | | ???????????## @ ##" ###????# | | ???????????##### ###??## | | ???????????#### ##??## | | ?????????????### ### ?### | | ?????????????### ########### ??### | | ??????????????### ############???## | | ??????????????#### ###???????????## | | ???????????????### ##??????????? ## | | ???????????????### ##???????????### | | ??????????????### ###????????????## | | ?????????????#### ####?????????????? | | ?????????????### ####??????????????? | | ?????????????## ####???????????????? | | ?????????????## #######????????????? | | ?????????????### #######???????????? | | ?????????????### ###???????????? | | ??????????????## #####????????? | | ??????????????#### ########?????? | | ??????????????######### # #####?????? | | ????????????????###### ## ##?????? | | ????????????????????## # ##?????? | | ????????????????????### #^ ####?????? | | ????????????????????## ###????###? | | ???????????????????### ####??? ##? | | ??????????????????#### ###### ### | +----------------------------------------------------+ Best States ------------- Heat Dissipation 25 Energy Generation 18 Energy Capacity 250 Matter Stores 300 Matter Capacity 300 Sight Range 21 Terrain Scan Density 10 Armor Coverage 150 Evasion (%) 55 Item Schematics ----------------- None Robot Schematics ------------------ None Fabricated ------------ Nothing Alien Tech Used ----------------- None Achievements -------------- None Challenges ------------ None Game ------ Seed StealthDisruptionLeg Manual? 0 Play Time 00:31:51 Cumulative 357.8 hours Start 2024.10.04 @ 19:02:06 End 2024.10.04 @ 19:29:05 Sessions 1 Manual Loads 0 Difficulty Rogue Special Mode None Game No. 500 Rogue 497 Adventurer 2 Explorer 1 Win Type - Total 3 Types 3/0/0/0/0/0/0/0/0 Lore% 43 Gallery% 74 Achievement% 61 Wizard Run 0 Options --------- Layout 1 ASCII 1 Keyboard 1 Movement Vi Keybinds 0 Fullscreen 1 Font 24/Smallcaps Map View 50x40 Zoom Use 0% Tactical HUD 1 Map Filters NONE Filters LOW_CONTRAST(13,24,33) Steam 1 RUN: c08ba118-9720-429e-a2a7-3f40b2544e4a